[Event "Titled Tuesday Blitz November 07 Late 2023"]
[White "Awoki, Daniel Teidi"]
[Black "Reprintsev, Alexander"]
[WhiteFideId "2100827"]
[BlackFideId "14100541"]
[WhiteElo "2308"]
[BlackElo "2508"]
[Result "1-0"]
[Round "6"]
[TimeControl "180+1"]
[Date "2023.11.07"]
[WhiteClock "0:00:07"]
[BlackClock "0:00:47"]
[Board "79"]

1. e4 {[%clk 0:03:00]}  d5 {[%clk 0:02:59]} 2. exd5 {[%clk 0:03:00]}  Qxd5 {[%clk 0:03:00]} 3. Nc3 {[%clk 0:03:01]}  Qa5 {[%clk 0:03:00]} 4. Bc4 {[%clk 0:03:01]}  Nf6 {[%clk 0:03:00]} 5. d3 {[%clk 0:03:01]}  Bg4 {[%clk 0:02:47]} 6. Ne2 {[%clk 0:03:00]}  e5 {[%clk 0:02:45]} 7. O-O {[%clk 0:02:58]}  Nc6 {[%clk 0:02:45]} 8. a3 {[%clk 0:02:51]}  O-O-O {[%clk 0:02:43]} 9. Bd2 {[%clk 0:02:49]}  Qc5 {[%clk 0:02:38]} 10. b4 {[%clk 0:02:47]}  Qe7 {[%clk 0:02:37]} 11. f3 {[%clk 0:02:45]}  Be6 {[%clk 0:02:36]} 12. Bxe6+ {[%clk 0:02:43]}  Qxe6 {[%clk 0:02:36]} 13. f4 {[%clk 0:02:35]}  e4 {[%clk 0:02:34]} 14. dxe4 {[%clk 0:02:25]}  Nxe4 {[%clk 0:02:34]} 15. Nxe4 {[%clk 0:02:25]}  Qxe4 {[%clk 0:02:34]} 16. Qe1 {[%clk 0:02:22]}  Bd6 {[%clk 0:02:17]} 17. Kh1 {[%clk 0:02:20]}  Rhe8 {[%clk 0:02:16]} 18. Nc3 {[%clk 0:02:14]}  Qxc2 {[%clk 0:02:15]} 19. Qf2 {[%clk 0:02:08]}  Bxb4 {[%clk 0:02:08]} 20. axb4 {[%clk 0:01:54]}  Rxd2 {[%clk 0:02:08]} 21. Qg3 {[%clk 0:01:55]}  Qd3 {[%clk 0:01:58]} 22. Qg4+ {[%clk 0:01:45]}  Kb8 {[%clk 0:01:52]} 23. Qxg7 {[%clk 0:01:39]}  Nxb4 {[%clk 0:01:46]} 24. Qxf7 {[%clk 0:01:37]}  Rd8 {[%clk 0:01:45]} 25. Rac1 {[%clk 0:01:25]}  Nc6 {[%clk 0:01:39]} 26. f5 {[%clk 0:01:10]}  Qd7 {[%clk 0:01:33]} 27. Qf6 {[%clk 0:00:53]}  Rg8 {[%clk 0:01:32]} 28. Rg1 {[%clk 0:00:29]}  Qg7 {[%clk 0:01:26]} 29. Qxg7 {[%clk 0:00:27]}  Rxg7 {[%clk 0:01:26]} 30. Ne4 {[%clk 0:00:17]}  Rd8 {[%clk 0:01:20]} 31. f6 {[%clk 0:00:16]}  Rf7 {[%clk 0:01:20]} 32. g4 {[%clk 0:00:16]}  h6 {[%clk 0:01:19]} 33. h4 {[%clk 0:00:15]}  Ne5 {[%clk 0:01:19]} 34. g5 {[%clk 0:00:15]}  hxg5 {[%clk 0:01:18]} 35. hxg5 {[%clk 0:00:16]}  Nd3 {[%clk 0:01:14]} 36. Rcd1 {[%clk 0:00:15]}  Rh8+ {[%clk 0:01:12]} 37. Kg2 {[%clk 0:00:14]}  Nf4+ {[%clk 0:01:13]} 38. Kf3 {[%clk 0:00:14]}  Ng6 {[%clk 0:01:13]} 39. Rh1 {[%clk 0:00:11]}  Re8 {[%clk 0:01:12]} 40. Rh6 {[%clk 0:00:09]}  Ne5+ {[%clk 0:01:11]} 41. Kf4 {[%clk 0:00:09]}  b6 {[%clk 0:01:07]} 42. g6 {[%clk 0:00:07]}  Nxg6+ {[%clk 0:01:00]} 43. Rxg6 {[%clk 0:00:08]}  a5 {[%clk 0:00:57]} 44. Rdg1 {[%clk 0:00:08]}  a4 {[%clk 0:00:55]} 45. Rg8 {[%clk 0:00:08]}  Rff8 {[%clk 0:00:54]} 46. Rxf8 {[%clk 0:00:08]}  Rxf8 {[%clk 0:00:54]} 47. Kf5 {[%clk 0:00:08]}  Kb7 {[%clk 0:00:54]} 48. Ke6 {[%clk 0:00:08]}  b5 {[%clk 0:00:54]} 49. Ke7 {[%clk 0:00:08]}  Ra8 {[%clk 0:00:54]} 50. f7 {[%clk 0:00:07]}  Kb6 {[%clk 0:00:47]} 51. Rg8 {[%clk 0:00:07]} 1-0


[Site "https://www.chess.com"]

[Event "Titled Tuesday Blitz November 07 Late 2023"]
[White "Mekhitarian, Krikor Sevag"]
[Black "Harish, Neeraj"]
[WhiteFideId "2107660"]
[BlackFideId "30958130"]
[WhiteElo "2746"]
[BlackElo "2287"]
[Result "0-1"]
[Round "6"]
[TimeControl "180+1"]
[Date "2023.11.07"]
[WhiteClock "0:01:49"]
[BlackClock "0:00:52"]
[Board "81"]

1. Nf3 {[%clk 0:03:00]}  d5 {[%clk 0:02:56]} 2. c4 {[%clk 0:03:01]}  e6 {[%clk 0:02:55]} 3. d4 {[%clk 0:02:58]}  Nf6 {[%clk 0:02:55]} 4. cxd5 {[%clk 0:02:59]}  exd5 {[%clk 0:02:55]} 5. Nc3 {[%clk 0:03:00]}  Be7 {[%clk 0:02:53]} 6. Bf4 {[%clk 0:03:00]}  c6 {[%clk 0:02:52]} 7. e3 {[%clk 0:03:00]}  O-O {[%clk 0:02:48]} 8. h3 {[%clk 0:03:01]}  Bd6 {[%clk 0:02:46]} 9. Bxd6 {[%clk 0:03:00]}  Qxd6 {[%clk 0:02:46]} 10. Bd3 {[%clk 0:03:01]}  Re8 {[%clk 0:02:45]} 11. Qc2 {[%clk 0:03:01]}  Nbd7 {[%clk 0:02:40]} 12. O-O-O {[%clk 0:03:00]}  b5 {[%clk 0:02:39]} 13. Kb1 {[%clk 0:03:00]}  a5 {[%clk 0:02:39]} 14. Ne2 {[%clk 0:03:00]}  a4 {[%clk 0:02:38]} 15. Rc1 {[%clk 0:03:01]}  Bb7 {[%clk 0:02:37]} 16. Ng3 {[%clk 0:03:00]}  Nb6 {[%clk 0:02:33]} 17. Nf5 {[%clk 0:02:59]}  Qf8 {[%clk 0:02:33]} 18. g4 {[%clk 0:02:58]}  Nc4 {[%clk 0:02:31]} 19. Ka1 {[%clk 0:02:58]}  Ne4 {[%clk 0:02:17]} 20. Ne5 {[%clk 0:02:47]}  Nxe5 {[%clk 0:02:09]} 21. dxe5 {[%clk 0:02:48]}  Rxe5 {[%clk 0:01:55]} 22. f3 {[%clk 0:02:47]}  Nf6 {[%clk 0:01:49]} 23. g5 {[%clk 0:02:47]}  Nd7 {[%clk 0:01:43]} 24. Rhe1 {[%clk 0:02:47]}  b4 {[%clk 0:01:39]} 25. f4 {[%clk 0:02:46]}  Ree8 {[%clk 0:01:37]} 26. Nd4 {[%clk 0:02:36]}  g6 {[%clk 0:01:33]} 27. Nxc6 {[%clk 0:02:27]}  Rec8 {[%clk 0:01:29]} 28. Bb5 {[%clk 0:02:23]}  Nb8 {[%clk 0:01:11]} 29. Qd2 {[%clk 0:02:08]}  Nxc6 {[%clk 0:01:10]} 30. Qxd5 {[%clk 0:02:07]}  Na5 {[%clk 0:01:00]} 31. Qd4 {[%clk 0:02:07]}  Nb3+ {[%clk 0:00:51]} 32. axb3 {[%clk 0:02:07]}  axb3+ {[%clk 0:00:52]} 33. Kb1 {[%clk 0:02:08]}  Ra1+ {[%clk 0:00:52]} 34. Kxa1 {[%clk 0:02:02]}  Ra8+ {[%clk 0:00:52]} 35. Kb1 {[%clk 0:01:47]}  Ra1+ {[%clk 0:00:52]} 36. Kxa1 {[%clk 0:01:48]}  Qa8+ {[%clk 0:00:52]} 37. Kb1 {[%clk 0:01:49]}  Qa2# {[%clk 0:00:52]} 0-1


[Site "https://www.chess.com"]

[Event "Titled Tuesday Blitz November 07 Late 2023"]
[White "Su, Dion"]
[Black "Janaszak, Dawid"]
[WhiteFideId "2029731"]
[BlackFideId "1119206"]
[WhiteElo "2421"]
[BlackElo "2622"]
[Result "0-1"]
[Round "6"]
[TimeControl "180+1"]
[Date "2023.11.07"]
[WhiteClock "0:00:08"]
[BlackClock "0:00:29"]
[Board "84"]

1. e4 {[%clk 0:03:00]}  c6 {[%clk 0:02:57]} 2. d4 {[%clk 0:02:58]}  g6 {[%clk 0:02:57]} 3. Nc3 {[%clk 0:02:58]}  Bg7 {[%clk 0:02:58]} 4. Nf3 {[%clk 0:02:53]}  d6 {[%clk 0:02:58]} 5. Bc4 {[%clk 0:02:49]}  Nf6 {[%clk 0:02:57]} 6. Bb3 {[%clk 0:02:45]}  Bg4 {[%clk 0:02:54]} 7. h3 {[%clk 0:02:45]}  Bxf3 {[%clk 0:02:54]} 8. Qxf3 {[%clk 0:02:45]}  O-O {[%clk 0:02:54]} 9. O-O {[%clk 0:02:44]}  Nbd7 {[%clk 0:02:53]} 10. Rd1 {[%clk 0:02:44]}  Qc7 {[%clk 0:02:51]} 11. Qe2 {[%clk 0:02:42]}  e5 {[%clk 0:02:50]} 12. Be3 {[%clk 0:02:41]}  Nh5 {[%clk 0:02:44]} 13. dxe5 {[%clk 0:02:29]}  Nxe5 {[%clk 0:02:44]} 14. f4 {[%clk 0:02:26]}  Nd7 {[%clk 0:02:43]} 15. Qd3 {[%clk 0:02:21]}  d5 {[%clk 0:02:33]} 16. exd5 {[%clk 0:02:18]}  Nxf4 {[%clk 0:02:25]} 17. Bxf4 {[%clk 0:01:40]}  Qxf4 {[%clk 0:02:23]} 18. dxc6 {[%clk 0:01:40]}  Ne5 {[%clk 0:02:23]} 19. Qe4 {[%clk 0:01:34]}  Qxe4 {[%clk 0:02:18]} 20. Nxe4 {[%clk 0:01:35]}  Nxc6 {[%clk 0:02:19]} 21. Rd7 {[%clk 0:01:29]}  Na5 {[%clk 0:02:13]} 22. Rf1 {[%clk 0:01:16]}  Nxb3 {[%clk 0:02:11]} 23. axb3 {[%clk 0:01:11]}  Bxb2 {[%clk 0:02:02]} 24. Rxb7 {[%clk 0:01:09]}  f5 {[%clk 0:01:51]} 25. Ng5 {[%clk 0:01:04]}  h6 {[%clk 0:01:48]} 26. Ne6 {[%clk 0:00:55]}  Rf7 {[%clk 0:01:48]} 27. Rb5 {[%clk 0:00:42]}  Re8 {[%clk 0:01:43]} 28. Nf4 {[%clk 0:00:39]}  g5 {[%clk 0:01:37]} 29. Nd3 {[%clk 0:00:39]}  Bd4+ {[%clk 0:01:37]} 30. Kh2 {[%clk 0:00:36]}  f4 {[%clk 0:01:37]} 31. Nf2 {[%clk 0:00:31]}  Re2 {[%clk 0:01:35]} 32. Ng4 {[%clk 0:00:31]}  Kg7 {[%clk 0:01:35]} 33. Rd5 {[%clk 0:00:28]}  Bb6 {[%clk 0:01:31]} 34. c4 {[%clk 0:00:27]}  Bc7 {[%clk 0:01:21]} 35. Rf3 {[%clk 0:00:26]}  Rb2 {[%clk 0:01:06]} 36. c5 {[%clk 0:00:25]}  Re7 {[%clk 0:01:05]} 37. h4 {[%clk 0:00:21]}  gxh4 {[%clk 0:01:05]} 38. Kh3 {[%clk 0:00:20]}  Rb1 {[%clk 0:01:03]} 39. Nf2 {[%clk 0:00:16]}  Kg6 {[%clk 0:00:45]} 40. Kxh4 {[%clk 0:00:17]}  Re3 {[%clk 0:00:45]} 41. Kg4 {[%clk 0:00:16]}  Rbxb3 {[%clk 0:00:43]} 42. Rd7 {[%clk 0:00:13]}  Be5 {[%clk 0:00:43]} 43. Nh3 {[%clk 0:00:11]}  h5+ {[%clk 0:00:32]} 44. Kh4 {[%clk 0:00:11]}  Rxf3 {[%clk 0:00:32]} 45. gxf3 {[%clk 0:00:10]}  Rxf3 {[%clk 0:00:33]} 46. Ng5 {[%clk 0:00:08]}  Bf6 {[%clk 0:00:31]} 47. Rd6 {[%clk 0:00:09]}  Rg3 {[%clk 0:00:28]} 48. Rxf6+ {[%clk 0:00:09]}  Kxf6 {[%clk 0:00:29]} 49. Ne4+ {[%clk 0:00:09]}  Ke5 {[%clk 0:00:29]} 50. Nxg3 {[%clk 0:00:08]}  fxg3 {[%clk 0:00:29]} 0-1


[Site "https://www.chess.com"]

[Event "Titled Tuesday Blitz November 07 Late 2023"]
[White "UK_23"]
[Black "Flameboard08"]
[WhiteElo "2413"]
[BlackElo "2594"]
[Result "0-1"]
[Round "6"]
[TimeControl "180+1"]
[Date "2023.11.07"]
[WhiteClock "0:00:45"]
[BlackClock "0:00:33"]
[Board "87"]

1. e4 {[%clk 0:02:54]}  a6 {[%clk 0:02:58]} 2. d4 {[%clk 0:02:53]}  d6 {[%clk 0:02:57]} 3. Nc3 {[%clk 0:02:53]}  g6 {[%clk 0:02:57]} 4. Nf3 {[%clk 0:02:52]}  Bg7 {[%clk 0:02:58]} 5. Be2 {[%clk 0:02:53]}  Nd7 {[%clk 0:02:55]} 6. O-O {[%clk 0:02:53]}  b5 {[%clk 0:02:56]} 7. a3 {[%clk 0:02:53]}  Bb7 {[%clk 0:02:56]} 8. Re1 {[%clk 0:02:51]}  e5 {[%clk 0:02:56]} 9. dxe5 {[%clk 0:02:50]}  dxe5 {[%clk 0:02:54]} 10. Be3 {[%clk 0:02:47]}  Ngf6 {[%clk 0:02:51]} 11. Nd2 {[%clk 0:02:47]}  O-O {[%clk 0:02:50]} 12. Bf1 {[%clk 0:02:44]}  Nb6 {[%clk 0:02:50]} 13. f3 {[%clk 0:02:38]}  h5 {[%clk 0:02:46]} 14. Nb3 {[%clk 0:02:35]}  Nfd7 {[%clk 0:02:43]} 15. Na5 {[%clk 0:02:30]}  Qc8 {[%clk 0:02:41]} 16. Nxb7 {[%clk 0:02:24]}  Qxb7 {[%clk 0:02:42]} 17. Qd2 {[%clk 0:02:08]}  Rfd8 {[%clk 0:02:39]} 18. Rad1 {[%clk 0:02:08]}  Bf6 {[%clk 0:02:35]} 19. Nd5 {[%clk 0:02:05]}  Nxd5 {[%clk 0:02:34]} 20. Qxd5 {[%clk 0:02:06]}  c6 {[%clk 0:02:15]} 21. Qd6 {[%clk 0:01:59]}  Kg7 {[%clk 0:02:13]} 22. b3 {[%clk 0:01:56]}  Nf8 {[%clk 0:01:51]} 23. Qc5 {[%clk 0:01:44]}  Be7 {[%clk 0:01:34]} 24. Qxe5+ {[%clk 0:01:39]}  Bf6 {[%clk 0:01:34]} 25. Qc5 {[%clk 0:01:36]}  Ne6 {[%clk 0:01:20]} 26. Qb4 {[%clk 0:01:29]}  c5 {[%clk 0:01:16]} 27. Bxc5 {[%clk 0:01:26]}  a5 {[%clk 0:01:10]} 28. Rxd8 {[%clk 0:01:04]}  axb4 {[%clk 0:00:55]} 29. Rxa8 {[%clk 0:01:03]}  Qxa8 {[%clk 0:00:54]} 30. Bxb4 {[%clk 0:01:03]}  Be7 {[%clk 0:00:42]} 31. Bc3+ {[%clk 0:01:01]}  Bf6 {[%clk 0:00:42]} 32. Bb4 {[%clk 0:01:01]}  Qc6 {[%clk 0:00:39]} 33. Bd3 {[%clk 0:01:01]}  Bc3 {[%clk 0:00:38]} 34. Bxc3+ {[%clk 0:00:56]}  Qxc3 {[%clk 0:00:39]} 35. Kf1 {[%clk 0:00:57]}  Nd4 {[%clk 0:00:36]} 36. Rc1 {[%clk 0:00:56]}  Nxb3 {[%clk 0:00:35]} 37. Rd1 {[%clk 0:00:53]}  Nd4 {[%clk 0:00:34]} 38. Rc1 {[%clk 0:00:50]}  Qxa3 {[%clk 0:00:33]} 39. Ke1 {[%clk 0:00:45]}  Qxc1+ {[%clk 0:00:33]} 0-1


[Site "https://www.chess.com"]

[Event "Titled Tuesday Blitz November 07 Late 2023"]
[White "Jaskolka, Tomasz"]
[Black "Inepton_Fermion"]
[WhiteFideId "1170791"]
[WhiteElo "2570"]
[BlackElo "2408"]
[Result "1-0"]
[Round "6"]
[TimeControl "180+1"]
[Date "2023.11.07"]
[WhiteClock "0:00:45"]
[BlackClock "0:00:01"]
[Board "88"]

1. e4 {[%clk 0:03:00]}  c5 {[%clk 0:02:51]} 2. Nf3 {[%clk 0:03:01]}  e6 {[%clk 0:02:51]} 3. b4 {[%clk 0:03:01]}  cxb4 {[%clk 0:02:50]} 4. d4 {[%clk 0:03:01]}  d5 {[%clk 0:02:49]} 5. e5 {[%clk 0:03:02]}  Nc6 {[%clk 0:02:32]} 6. a3 {[%clk 0:02:59]}  bxa3 {[%clk 0:02:32]} 7. Bxa3 {[%clk 0:02:52]}  Bxa3 {[%clk 0:02:31]} 8. Nxa3 {[%clk 0:02:52]}  Nge7 {[%clk 0:02:19]} 9. c3 {[%clk 0:02:51]}  Bd7 {[%clk 0:02:12]} 10. Bd3 {[%clk 0:02:49]}  a6 {[%clk 0:02:10]} 11. Nc2 {[%clk 0:02:46]}  h6 {[%clk 0:02:09]} 12. Ne3 {[%clk 0:02:45]}  b5 {[%clk 0:02:05]} 13. O-O {[%clk 0:02:43]}  Na5 {[%clk 0:02:04]} 14. Nd2 {[%clk 0:02:35]}  Qc7 {[%clk 0:01:54]} 15. Nb3 {[%clk 0:02:20]}  Nc4 {[%clk 0:01:44]} 16. Nc5 {[%clk 0:02:20]}  a5 {[%clk 0:01:22]} 17. Qg4 {[%clk 0:02:00]}  O-O {[%clk 0:01:14]} 18. Bc2 {[%clk 0:01:16]}  Nxe5 {[%clk 0:00:55]} 19. Qg3 {[%clk 0:01:07]}  Rfc8 {[%clk 0:00:55]} 20. f4 {[%clk 0:00:55]}  Nc4 {[%clk 0:00:43]} 21. Ng4 {[%clk 0:00:56]}  Kh8 {[%clk 0:00:24]} 22. Qh4 {[%clk 0:00:50]}  Nf5 {[%clk 0:00:14]} 23. Bxf5 {[%clk 0:00:47]}  exf5 {[%clk 0:00:15]} 24. Nxh6 {[%clk 0:00:48]}  gxh6 {[%clk 0:00:05]} 25. Qxh6+ {[%clk 0:00:49]}  Kg8 {[%clk 0:00:06]} 26. Rf3 {[%clk 0:00:46]}  Qc6 {[%clk 0:00:01]} 27. Rg3+ {[%clk 0:00:45]} 1-0


[Site "https://www.chess.com"]

[Event "Titled Tuesday Blitz November 07 Late 2023"]
[White "Wartiovaara, Oliver"]
[Black "Eggleston, Thomas A"]
[WhiteFideId "513024"]
[BlackFideId "412139"]
[WhiteElo "2522"]
[BlackElo "2374"]
[Result "1-0"]
[Round "6"]
[TimeControl "180+1"]
[Date "2023.11.07"]
[WhiteClock "0:01:34"]
[BlackClock "0:00:50"]
[Board "90"]

1. e4 {[%clk 0:03:00]}  e6 {[%clk 0:02:59]} 2. d3 {[%clk 0:02:58]}  c5 {[%clk 0:02:57]} 3. Nd2 {[%clk 0:02:59]}  Nc6 {[%clk 0:02:57]} 4. Ngf3 {[%clk 0:02:59]}  d5 {[%clk 0:02:57]} 5. g3 {[%clk 0:02:58]}  Bd6 {[%clk 0:02:57]} 6. Bg2 {[%clk 0:02:57]}  Nge7 {[%clk 0:02:57]} 7. O-O {[%clk 0:02:57]}  d4 {[%clk 0:02:57]} 8. Nc4 {[%clk 0:02:42]}  e5 {[%clk 0:02:57]} 9. Nxd6+ {[%clk 0:02:20]}  Qxd6 {[%clk 0:02:56]} 10. Nd2 {[%clk 0:02:20]}  O-O {[%clk 0:02:47]} 11. Nc4 {[%clk 0:02:18]}  Qc7 {[%clk 0:02:47]} 12. f4 {[%clk 0:02:18]}  f6 {[%clk 0:02:22]} 13. fxe5 {[%clk 0:02:14]}  Nxe5 {[%clk 0:02:17]} 14. Nxe5 {[%clk 0:02:10]}  fxe5 {[%clk 0:02:17]} 15. Rxf8+ {[%clk 0:02:09]}  Kxf8 {[%clk 0:02:17]} 16. Qh5 {[%clk 0:02:06]}  Be6 {[%clk 0:01:47]} 17. Qxh7 {[%clk 0:02:01]}  c4 {[%clk 0:01:08]} 18. Bg5 {[%clk 0:01:52]}  Ng8 {[%clk 0:01:08]} 19. Rf1+ {[%clk 0:01:49]}  Ke8 {[%clk 0:01:08]} 20. Bh3 {[%clk 0:01:42]}  Qd7 {[%clk 0:00:56]} 21. Bxe6 {[%clk 0:01:37]}  Qxe6 {[%clk 0:00:56]} 22. Qxg7 {[%clk 0:01:36]}  cxd3 {[%clk 0:00:50]} 23. Rf8# {[%clk 0:01:34]} 1-0


[Site "https://www.chess.com"]

[Event "Titled Tuesday Blitz November 07 Late 2023"]
[White "Becerra, Juan David"]
[Black "Pasti, Aron"]
[WhiteFideId "4404998"]
[BlackFideId "785857"]
[WhiteElo "2365"]
[BlackElo "2501"]
[Result "1-0"]
[Round "6"]
[TimeControl "180+1"]
[Date "2023.11.07"]
[WhiteClock "0:00:56"]
[BlackClock "0:02:14"]
[Board "92"]

1. d4 {[%clk 0:03:00]}  Nf6 {[%clk 0:02:59]} 2. Nc3 {[%clk 0:03:01]}  d5 {[%clk 0:02:58]} 3. Bf4 {[%clk 0:03:00]}  a6 {[%clk 0:02:58]} 4. Nf3 {[%clk 0:02:58]}  Bf5 {[%clk 0:02:57]} 5. e3 {[%clk 0:02:59]}  c5 {[%clk 0:02:57]} 6. Bd3 {[%clk 0:02:59]}  Bxd3 {[%clk 0:02:56]} 7. cxd3 {[%clk 0:02:59]}  cxd4 {[%clk 0:02:55]} 8. Nxd4 {[%clk 0:02:58]}  Nc6 {[%clk 0:02:55]} 9. Qa4 {[%clk 0:02:47]}  Qd7 {[%clk 0:02:53]} 10. Nxc6 {[%clk 0:02:43]}  bxc6 {[%clk 0:02:54]} 11. d4 {[%clk 0:02:37]}  e6 {[%clk 0:02:53]} 12. O-O {[%clk 0:02:36]}  Bd6 {[%clk 0:02:52]} 13. Bg3 {[%clk 0:02:34]}  O-O {[%clk 0:02:52]} 14. Rac1 {[%clk 0:02:30]}  Rfc8 {[%clk 0:02:50]} 15. b4 {[%clk 0:02:26]}  a5 {[%clk 0:02:45]} 16. bxa5 {[%clk 0:02:21]}  Bxg3 {[%clk 0:02:44]} 17. hxg3 {[%clk 0:02:21]}  Qc7 {[%clk 0:02:45]} 18. a6 {[%clk 0:02:09]}  Qb6 {[%clk 0:02:43]} 19. Rb1 {[%clk 0:01:57]}  Qxa6 {[%clk 0:02:43]} 20. Qb4 {[%clk 0:01:57]}  Qa3 {[%clk 0:02:37]} 21. Rfc1 {[%clk 0:01:55]}  g5 {[%clk 0:02:36]} 22. Rb3 {[%clk 0:01:48]}  Qxb4 {[%clk 0:02:36]} 23. Rxb4 {[%clk 0:01:49]}  c5 {[%clk 0:02:37]} 24. dxc5 {[%clk 0:01:24]}  Rxc5 {[%clk 0:02:38]} 25. Ne2 {[%clk 0:01:21]}  Rca5 {[%clk 0:02:34]} 26. Rc7 {[%clk 0:01:16]}  Rxa2 {[%clk 0:02:31]} 27. Nc1 {[%clk 0:01:08]}  R2a7 {[%clk 0:02:26]} 28. Rxa7 {[%clk 0:01:01]}  Rxa7 {[%clk 0:02:26]} 29. Nd3 {[%clk 0:01:01]}  Ra1+ {[%clk 0:02:26]} 30. Kh2 {[%clk 0:01:00]}  Ng4+ {[%clk 0:02:19]} 31. Rxg4 {[%clk 0:00:59]}  h5 {[%clk 0:02:20]} 32. Rxg5+ {[%clk 0:00:59]}  Kf8 {[%clk 0:02:17]} 33. Rxh5 {[%clk 0:00:59]}  Ke7 {[%clk 0:02:14]} 34. Nf4 {[%clk 0:00:56]} 1-0


[Site "https://www.chess.com"]

[Event "Titled Tuesday Blitz November 07 Late 2023"]
[White "Musovic, Armin"]
[Black "Skaric, Djuro"]
[WhiteFideId "939935"]
[BlackFideId "934569"]
[WhiteElo "2496"]
[BlackElo "2364"]
[Result "1-0"]
[Round "6"]
[TimeControl "180+1"]
[Date "2023.11.07"]
[WhiteClock "0:00:08"]
[BlackClock "0:00:00"]
[Board "93"]

1. e4 {[%clk 0:03:00]}  d6 {[%clk 0:03:00]} 2. Nc3 {[%clk 0:03:00]}  g6 {[%clk 0:02:59]} 3. a3 {[%clk 0:02:59]}  Bg7 {[%clk 0:02:59]} 4. Bc4 {[%clk 0:03:00]}  Nf6 {[%clk 0:02:59]} 5. d3 {[%clk 0:03:00]}  O-O {[%clk 0:02:59]} 6. Nge2 {[%clk 0:03:01]}  Nc6 {[%clk 0:03:00]} 7. Ba2 {[%clk 0:03:01]}  h6 {[%clk 0:03:00]} 8. O-O {[%clk 0:03:02]}  e5 {[%clk 0:03:00]} 9. h3 {[%clk 0:03:02]}  Kh7 {[%clk 0:03:00]} 10. f4 {[%clk 0:03:03]}  exf4 {[%clk 0:02:58]} 11. Nxf4 {[%clk 0:02:58]}  Ne5 {[%clk 0:02:51]} 12. Be3 {[%clk 0:02:54]}  b6 {[%clk 0:02:49]} 13. Qd2 {[%clk 0:02:54]}  c6 {[%clk 0:02:45]} 14. Rf2 {[%clk 0:02:47]}  c5 {[%clk 0:02:39]} 15. Raf1 {[%clk 0:02:45]}  Nfg4 {[%clk 0:02:36]} 16. hxg4 {[%clk 0:02:41]}  Nxg4 {[%clk 0:02:36]} 17. Nfe2 {[%clk 0:02:27]}  Qh4 {[%clk 0:02:23]} 18. g3 {[%clk 0:02:11]}  Qd8 {[%clk 0:02:13]} 19. Rxf7 {[%clk 0:02:04]}  Rxf7 {[%clk 0:02:07]} 20. Rxf7 {[%clk 0:02:05]}  Qe8 {[%clk 0:02:05]} 21. Nf4 {[%clk 0:01:27]}  Ne5 {[%clk 0:01:38]} 22. Rxg7+ {[%clk 0:01:19]}  Kxg7 {[%clk 0:01:36]} 23. Qg2 {[%clk 0:00:47]}  Bg4 {[%clk 0:01:33]} 24. Bd5 {[%clk 0:00:39]}  Rd8 {[%clk 0:01:29]} 25. Kf2 {[%clk 0:00:34]}  g5 {[%clk 0:01:23]} 26. Nce2 {[%clk 0:00:16]}  Qd7 {[%clk 0:01:05]} 27. Ng1 {[%clk 0:00:15]}  gxf4 {[%clk 0:01:01]} 28. gxf4 {[%clk 0:00:16]}  Ng6 {[%clk 0:01:01]} 29. f5 {[%clk 0:00:13]}  Ne5 {[%clk 0:01:01]} 30. d4 {[%clk 0:00:12]}  Rf8 {[%clk 0:00:56]} 31. dxe5 {[%clk 0:00:11]}  h5 {[%clk 0:00:55]} 32. Nf3 {[%clk 0:00:09]}  Rxf5 {[%clk 0:00:31]} 33. exf5 {[%clk 0:00:08]}  Qxf5 {[%clk 0:00:31]} 34. Qg3 {[%clk 0:00:07]}  Qxc2+ {[%clk 0:00:30]} 35. Kg1 {[%clk 0:00:06]}  Qd1+ {[%clk 0:00:28]} 36. Kh2 {[%clk 0:00:05]}  Qxd5 {[%clk 0:00:27]} 37. exd6 {[%clk 0:00:03]}  Kf7 {[%clk 0:00:20]} 38. Ne5+ {[%clk 0:00:03]}  Ke6 {[%clk 0:00:19]} 39. Nxg4 {[%clk 0:00:04]}  hxg4 {[%clk 0:00:18]} 40. Qxg4+ {[%clk 0:00:03]}  Kxd6 {[%clk 0:00:19]} 41. Bf4+ {[%clk 0:00:03]}  Kc6 {[%clk 0:00:19]} 42. Qc8+ {[%clk 0:00:04]}  Kb5 {[%clk 0:00:17]} 43. Qe8+ {[%clk 0:00:04]}  Ka5 {[%clk 0:00:12]} 44. Qe2 {[%clk 0:00:04]}  b5 {[%clk 0:00:11]} 45. Bd2+ {[%clk 0:00:04]}  Ka6 {[%clk 0:00:11]} 46. Qg2 {[%clk 0:00:02]}  Qh5+ {[%clk 0:00:10]} 47. Kg1 {[%clk 0:00:02]}  Qd1+ {[%clk 0:00:10]} 48. Kh2 {[%clk 0:00:03]}  Qh5+ {[%clk 0:00:10]} 49. Kg3 {[%clk 0:00:04]}  Qg6+ {[%clk 0:00:09]} 50. Kf2 {[%clk 0:00:05]}  Qd3 {[%clk 0:00:08]} 51. Ke1 {[%clk 0:00:05]}  Qd6 {[%clk 0:00:06]} 52. Qe4 {[%clk 0:00:04]}  Kb6 {[%clk 0:00:04]} 53. a4 {[%clk 0:00:04]}  bxa4 {[%clk 0:00:04]} 54. Qxa4 {[%clk 0:00:05]}  a6 {[%clk 0:00:04]} 55. Qa5+ {[%clk 0:00:05]}  Kb7 {[%clk 0:00:05]} 56. Qc3 {[%clk 0:00:06]}  Qe6+ {[%clk 0:00:04]} 57. Kd1 {[%clk 0:00:06]}  Qd5 {[%clk 0:00:04]} 58. Kc1 {[%clk 0:00:06]}  Kc6 {[%clk 0:00:04]} 59. Kc2 {[%clk 0:00:07]}  c4 {[%clk 0:00:04]} 60. Qb4 {[%clk 0:00:06]}  Qb5 {[%clk 0:00:04]} 61. Qxb5+ {[%clk 0:00:06]}  Kxb5 {[%clk 0:00:04]} 62. Kc3 {[%clk 0:00:06]}  a5 {[%clk 0:00:04]} 63. Bh6 {[%clk 0:00:07]}  a4 {[%clk 0:00:00]} 64. Bf8 {[%clk 0:00:08]} 1-0


[Site "https://www.chess.com"]